Cogmind - Beta 13 @@@ ROGUE MODE // 2024.08.01 @ 14:28:21 Player: Cinder Result: Destroyed by D-53 Grenadier with Mini Grenade Launcher Performance ------------- Evolutions (1) 500 Regions Visited (4) 800 Robots Destroyed (22) 110 Value Destroyed (463) 463 Prototype IDs (0) 0 Alien Tech Used (0) 0 Bonus (0) 0 TOTAL SCORE: 1873 Bonus ------- None Cogmind --------- Core Integrity 0/400 Matter 238/300 Energy 100/100 System Corruption 4% Temperature Cool (0) Movement Core (100) Ox1 Location -9/Mines Parts ------- > --- POWER (1) -------- (None) > --- PROPULSION (4) --- (None) > --- UTILITY (2) ------ Small Storage Unit Improved Targeting Computer > --- WEAPON (2) ------- (None) > --- INVENTORY (8) ---- Light Nuclear Core Improved Treads Improved Treads Improved Treads Shield Generator Peak State ------------ > --- POWER ------------ Improved Ion Engine > --- PROPULSION ------- Improved Treads Improved Treads Improved Treads Improved Treads > --- UTILITY ---------- Small Storage Unit Improved Targeting Computer > --- WEAPON ----------- Assault Rifle Heavy Assault Rifle > --- INVENTORY -------- Light Ion Engine Light Ion Engine Aluminum Leg Aluminum Leg Compact Wheel Tractor Beam Particle Gun Grenade Launcher [Rating: 16] Favorites ----------- Power Ion Engine Engine Ion Engine Propulsion Aluminum Leg Treads Improved Treads Leg Aluminum Leg Wheel Compact Wheel Flight Unit Flight Unit Utility Small Storage Unit Device Seismic Detector Storage Small Storage Unit Processor Improved Targeting Computer Weapon Assault Rifle Energy Gun Medium Laser Ballistic Gun Assault Rifle Launcher Rocket Launcher Special Weapon Mining Laser Build | -11 -10 -10 -9 -9 ------- Run | Yrd Mat Min Mat Min Slots Evolved 2 | . . . 2 . Power . | . . . . . Propulsion 2 | . . . 2 . Utility . | . . . . . Weapon . | . . . . . Parts Attached 31 | 9 1 2 14 5 Power 4 | . 1 1 2 . Engine 4 | . 1 1 2 . Core . | . . . . . Reactor . | . . . . . Propulsion 14 | 3 . 1 9 1 Treads 5 | . . . 5 . Leg 3 | 2 . 1 . . Wheel 2 | 1 . . . 1 Hover . | . . . . . Flight 4 | . . . 4 . Utility 3 | 2 . . 1 . Device 1 | 1 . . . . Storage 1 | 1 . . . . Processor 1 | . . . 1 . Hackware . | . . . . . Protection . | . . . . . Artifact . | . . . . . Weapon 10 | 4 . . 2 4 Energy Gun 1 | 1 . . . . Energy Cannon . | . . . . . Ballistic Gun 6 | 3 . . 2 1 Ballistic Cannon . | . . . . . Launcher 2 | . . . . 2 Special Weapon 1 | . . . . 1 Impact Weapon . | . . . . . Slashing Weapon . | . . . . . Piercing Weapon . | . . . . . Special Melee Weapon . | . . . . . Unidentified Prototypes . | . . . . . Parts Lost 13 | . . 2 . 11 Power 2 | . . 1 . 1 Propulsion 5 | . . . . 5 Utility 1 | . . 1 . . Weapon 5 | . . . . 5 Highest Loss Streak 7 | . . 2 . 7 To Critical Strikes . | . . . . . Average Slot Usage (%) 84 | . 95 90 88 59 Engine 10 | . 10 12 11 2 Treads 9 | . . . 19 . Leg 14 | . 28 28 10 . Wheel 1 | . . . . 7 Flight 5 | . . . 4 19 Device 2 | . 14 5 . . Storage 12 | . 14 14 11 11 Processor 6 | . . . 9 11 Ballistic Gun 21 | . 28 28 21 6 Naked Turns . | . . . . . Heaviest Build 17 | 9 12 13 17 13 Greatest Support 92 | 20 20 20 92 16 Greatest Overweight (x) 1 | 1 . . 1 1 Average Overweight (x) . | . . . . . Largest Inventory Capacity 8 | 8 8 8 8 8 Average Capacity 7 | 7 8 8 8 8 Most Carried 8 | 7 7 7 8 8 Average Carried 6 | 4 6 6 7 6 Final Capacity 8 | 8 8 8 8 8 Final Carried 8 | 6 6 6 8 5 Class Distribution -------------------- 90% | Mutant 9% | Scavenger-Sprinter Dominant Class ---------------- Mutant | -10/Materials Mutant | -10/Mines Mutant | -9/Materials Mutant | -9/Mines Resources | -11 -10 -10 -9 -9 ----------- Run | Yrd Mat Min Mat Min Matter Collected 780 | 291 . 123 268 98 Remotely . | . . . . . Salvage Created 646 | 97 . 195 314 40 Parts 40 | 7 . 7 22 4 Haulers Intercepted . | . . . . . Recyclers Shooed 2 | 1 . 1 . . Parts Field Recycled . | . . . . . Retrieved Matter . | . . . . . Parts Self-Destructed . | . . . . . Prevented . | . . . . . Kills | -11 -10 -10 -9 -9 ------- Run | Yrd Mat Min Mat Min Combat Hostiles Destroyed 25 | . . 4 14 7 Guns 19 | . . 4 14 1 AOE 6 | . . . . 6 Classes Destroyed 8 | 2 . 1 2 3 Worker 1 | . . . . 1 Tunneler 1 | 1 . . . . Recycler 1 | 1 . . . . Swarmer 11 | . . . 11 . Grunt 5 | . . 4 1 . Sentry 2 | . . . 2 . Demolisher 1 | . . . . 1 Assembled 6 | . . . . 6 Best Kill Streak 6 | 2 . 2 4 6 Combat Bots Only 6 | . . 2 4 6 Max Kills in Single Turn 4 | 1 . 1 1 4 Gunslinging . | . . . . . Exploded 4 | . . . . 4 Melee . | . . . . . Uniques/NPCs Destroyed . | . . . . . Combat | -11 -10 -10 -9 -9 -------- Run | Yrd Mat Min Mat Min Hostile Shots Fired 160 | . . 37 96 27 Missed 49 | . . 6 38 5 Damage Taken 1737 | . . 401 551 785 Core 494 | . . 86 68 340 Absorbed by Shields . | . . . . . Regen/Repaired (Parts) 92 | . . . 92 . Core Remaining (%) 82 | 100 . 65 . . Volleys Fired 76 | 7 1 20 37 11 Largest 2 | 2 2 2 2 2 Hottest 100 | 70 40 40 43 100 Shots Fired 146 | 14 2 40 74 16 Gun 138 | 14 2 40 74 8 Cannon . | . . . . . Launcher 5 | . . . . 5 Special 3 | . . . . 3 Kinetic 135 | 11 2 40 74 8 Thermal 6 | 3 . . . 3 Explosive 5 | . . . . 5 Electromagnetic . | . . . . . Robot Hit Streak 26 | 4 3 7 26 4 Robot Miss Streak 2 | 2 . 2 2 2 Penetration Max . | . . . . . Secondary Targets 2 | . . . 2 . Max Gunslinging Chain 1 | . . . 1 . Shots Hit Robots 102 | 8 2 31 52 9 Core Hits 43 | 3 1 11 18 10 Critical Kills . | . . . . . Critical Parts Destroyed . | . . . . . Critical Strikes . | . . . . . Melee Attacks . | . . . . . Impact . | . . . . . Slashing . | . . . . . Piercing . | . . . . . Sneak Attacks . | . . . . . Combat Hostiles . | . . . . . Follow-up Attacks . | . . . . . Damage Inflicted 1576 | 86 23 329 700 438 Guns 1209 | 86 23 322 697 81 Cannons . | . . . . . Explosions 357 | . . . . 357 Melee . | . . . . . Ramming 10 | . . 7 3 . Kinetic 1172 | 49 23 322 697 81 Thermal 37 | 37 . . . . Explosive 357 | . . . . 357 Electromagnetic . | . . . . . Impact . | . . . . . Slashing . | . . . . . Piercing . | . . . . . Highest Corruption 4 | . . . . 4 Average Corruption 4 | . . . . 4 Corruption Purged . | . . . . . Corruption Blocked . | . . . . . Effects 3 | . . . . 3 Message Errors 1 | . . . . 1 Matter Fused 1 | . . . . 1 Energy Discharges 1 | . . . . 1 Overload Shots . | . . . . . Overflow Damage 46 | . . . . 46 Projectiles . | . . . . . Explosions 46 | . . . . 46 Melee . | . . . . . Knockbacks . | . . . . . Impact . | . . . . . Kinetic . | . . . . . Secondary . | . . . . . Self-Inflicted Damage 87 | . . . . 87 Shots 2 | . . . . 2 Rammed 1 | . . . 1 . Targets Rammed 2 | . . 1 1 . Kicked 1 | . . 1 . . Crushed . | . . . . . Highest Temperature 40 | 40 . 30 19 23 Average Temperature 13 | 23 . 13 5 13 Received Heat Transfer 342 | . . 234 108 . Siege Activations . | . . . . . Robots Corrupted . | . . . . . Combat Hostiles . | . . . . . Parts Fried . | . . . . . Impact Corruptions . | . . . . . Robots Melted . | . . . . . Combat Hostiles . | . . . . . Parts Melted . | . . . . . Heat Transferred 111 | 111 . . . . Parts Sabotaged . | . . . . . Parts Stolen . | . . . . . Parts Stripped . | . . . . . Power Chain Reactions . | . . . . . Alert | -11 -10 -10 -9 -9 ------- Run | Yrd Mat Min Mat Min Peak Influence 330 | 10 25 89 330 89 Initial 73 | . 6 9 34 73 Average 73 | 2 17 63 113 44 Maximum Alert Level 1 | . . . 1 . Low Security (%) 95 | 100 100 100 89 100 Level 1 4 | . . . 10 . Level 2 . | . . . . . Level 3 . | . . . . . Level 4 . | . . . . . Level 5 . | . . . . . High Security . | . . . . . Max Security . | . . . . . Squads Dispatched 5 | . 2 . 2 1 Investigation 2 | . 1 . . 1 Extermination . | . . . . . Reinforcement 3 | . 1 . 2 . Assault . | . . . . . Garrison . | . . . . . Intercept . | . . . . . Searches Triggered . | . . . . . Construction Impeded . | . . . . . Haulers Reinforced . | . . . . . Active Scanning Responses . | . . . . . Cargo Convoy Interrupts . | . . . . . Stealth | -11 -10 -10 -9 -9 --------- Run | Yrd Mat Min Mat Min Distress Signals 5 | . . . 5 . Communications Jammed . | . . . . . Distress Signals . | . . . . . Times Spotted 48 | . 1 4 33 10 Peak Tracking Total 8 | . 1 2 8 6 Tactical Retreats 4 | . . . 4 . Traps | -11 -10 -10 -9 -9 ------- Run | Yrd Mat Min Mat Min Traps Triggered . | . . . . . Indirectly . | . . . . . Trap Hack Attempts . | . . . . . Triggered . | . . . . . Disarmed 2 | . . . 2 . Reprogrammed . | . . . . . Reused . | . . . . . Traps Extracted . | . . . . . Installed . | . . . . . Triggered . | . . . . . Machines | -11 -10 -10 -9 -9 ---------- Run | Yrd Mat Min Mat Min Machines Disabled . | . . . . . Max in Single Turn . | . . . . . Machines Repaired . | . . . . . Machines Dismantled . | . . . . . Machines Sabotaged . | . . . . . Overloaded Fab Kills . | . . . . . Hacking | -11 -10 -10 -9 -9 --------- Run | Yrd Mat Min Mat Min Machines Accessed 8 | . 2 . 5 1 Terminals 5 | . 1 . 3 1 Fabricators . | . . . . . Repair Stations 1 | . . . 1 . Recycling Units 1 | . 1 . . . Scanalyzers 1 | . . . 1 . Garrison Access . | . . . . . Total Hacks 30 | . 10 . 17 3 Successful 18 | . 6 . 12 . Failed 12 | . 4 . 5 3 Catastrophic 2 | . 1 . 1 . Database Lockouts . | . . . . . Manual . | . . . . . Terminals 19 | . 6 . 10 3 Fabricators . | . . . . . Repair Stations 5 | . . . 5 . Recycling Units 4 | . 4 . . . Scanalyzers 2 | . . . 2 . Garrison Access . | . . . . . Terminal Hacks 10 | . 4 . 6 . Record 2 | . 2 . . . Branch Access Points 1 | . . . 1 . Alert Level 1 | . . . 1 . Unreport Threat 1 | . . . 1 . Locate Traps 2 | . 1 . 1 . Disarm Traps 1 | . . . 1 . Dispatch Records 1 | . 1 . . . Zone Layout 1 | . . . 1 . Fabricator Hacks . | . . . . . Repair Station Hacks 4 | . . . 4 . Scan Component 2 | . . . 2 . Repair 2 | . . . 2 . Recycling Unit Hacks 2 | . 2 . . . Report Inventory 1 | . 1 . . . Retrieve Components 1 | . 1 . . . Scanalyzer 2 | . . . 2 . Insert Component 1 | . . . 1 . Analyze 1 | . . . 1 . Garrison Access Hacks . | . . . . . Unauthorized Hacks . | . . . . . Terminals . | . . . . . Fabricators . | . . . . . Repair Stations . | . . . . . Recycling Units . | . . . . . Scanalyzers . | . . . . . Garrison Access . | . . . . . Data Cores Recovered . | . . . . . Used . | . . . . . Hacking Detections 7 | . 2 . 4 1 Full Trace Events 2 | . 1 . . 1 Feedback Events . | . . . . . Feedback Blocked . | . . . . . Robot Schematics Acquired . | . . . . . Robots Built . | . . . . . Authchips . | . . . . . Time . | . . . . . Total Robot Build Rating . | . . . . . Part Schematics Acquired 1 | . . . 1 . Parts Built . | . . . . . Authchips . | . . . . . Time . | . . . . . Total Part Build Rating . | . . . . . Parts Repaired 2 | . . . 2 . Time 52 | . . . 52 . Parts Recycled . | . . . . . Recycled Matter . | . . . . . Retrieved Matter . | . . . . . Retrieved Components 3 | . 3 . . . Parts Scanalyzed 1 | . . . 1 . Part Schematics Acquired 1 | . . . 1 . Parts Damaged . | . . . . . Bothacking | -11 -10 -10 -9 -9 ------------ Run | Yrd Mat Min Mat Min Used RIF Installer . | . . . . . Robots Hacked . | . . . . . Non-combat . | . . . . . Combat . | . . . . . Robot Hacks Applied . | . . . . . Relay Couplers Released . | . . . . . Fabnet Peak Effective % . | . . . . . Robots Rewired . | . . . . . Allies Hacked . | . . . . . Hacks Repelled . | . . . . . Allies | -11 -10 -10 -9 -9 -------- Run | Yrd Mat Min Mat Min Total Allies . | . . . . . Largest Group . | . . . . . Highest-Rated Group . | . . . . . Highest-Rated Ally . | . . . . . Total Orders . | . . . . . Ally Attacks . | . . . . . Total Damage . | . . . . . Kills . | . . . . . Allies Corrupted . | . . . . . Allies Melted . | . . . . . Intel | -11 -10 -10 -9 -9 ------- Run | Yrd Mat Min Mat Min Robot Analysis Total . | . . . . . Derelict Logs Recovered 2 | . . 1 . 1 Drone Launches . | . . . . . Drone Recoveries . | . . . . . Exploration | -11 -10 -10 -9 -9 ------------- Run | Yrd Mat Min Mat Min Turns Passed 1065 | 96 70 270 463 166 Spaces Moved 662 | 52 55 156 234 165 Core 19 | 15 . . . 4 Treads 73 | . . . 73 . Legs 340 | 37 55 156 92 . Wheels 94 | . . . . 94 Hover . | . . . . . Flight 136 | . . . 69 67 Fastest Speed 31 | 50 120 120 31 31 Average Speed 103 | 106 120 120 109 71 Slowest Speed 160 | 120 120 120 160 100 Overloaded Moves . | . . . . . Propulsion Burnouts . | . . . . . Robots Hopped . | . . . . . Cave-ins Triggered . | . . . . . Exploration Rate (%) 24 | 5 15 35 28 40 Regions Visited 4 Branch Regions 2 Pre-discovered Areas 2 | . . 1 . 1 Known Exits Taken 1 | . . . 1 . Unknown Exits Taken 3 | 1 1 1 . . Scrap Searched 1 | . . . . 1 Spaces Dug 3 | . . . . 3 Terrain Destroyed 52 | . . . . 52 Melee . | . . . . . Projectile 3 | . . . . 3 AOE 49 | . . . . 49 Terrain Rammed . | . . . . . Walls Destroyed . | . . . . . Machines Disabled . | . . . . . Actions | -11 -10 -10 -9 -9 --------- Run | Yrd Mat Min Mat Min Total 900 | 79 57 203 371 190 Wait 84 | . . 20 58 6 Move 658 | 51 54 155 233 165 Hop . | . . . . . Pick Up 31 | 11 1 3 14 2 Fast Attach 4 | 1 . . 3 . Attach 17 | 6 1 1 5 4 Detach 3 | 1 . . 2 . Swap 10 | 2 . 1 6 1 Drop 15 | . . 2 12 1 Fire 76 | 7 1 20 37 11 Melee . | . . . . . Ram . | . . . . . Kick 1 | . . 1 . . Crush 1 | . . . 1 . Escape Stasis . | . . . . . Rewire . | . . . . . Trap . | . . . . . Miscellaneous . | . . . . . Route ------- -11/Scrapyard -10/Materials -10/Mines -9/Materials (discovered 2 exits: *Min x2) -9/Mines History --------- Turn | Location | Event 11 | -11/Scrapyard | Discovered new exit (range 15) 97 | -11/Scrapyard | Entered Materials 160 | -10/Materials | Discovered new exit (range 6) 167 | -10/Materials | Entered Mines 168 | -10/Mines | Learned location of Storage (-7) 319 | -10/Mines | Build established: Mutant 428 | -10/Mines | Discovered new exit (range 5) 437 | -10/Mines | Entered Materials 437 | -9/Materials | Evolved 2 slots: Propulsion x2 516 | -9/Materials | Repaired Grenade Launcher 543 | -9/Materials | Repaired Assault Rifle 714 | -9/Materials | Identified exit to Mines 900 | -9/Materials | Entered Mines 907 | -9/Mines | Assembled infested the area 912 | -9/Mines | Assisted by a Guerilla fighting off Assembled 948 | -9/Mines | Core integrity fell below 50% 984 | -9/Mines | Lost 7 parts (1p3n3w) 1000 | -9/Mines | Learned location of Zion (-6) 1060 | -9/Mines | Core integrity fell below 20% 1066 | -9/Mines | Destroyed by D-53 Grenadier with Mini Grenade Launcher Last Messages --------------- 01000_ Acquired derelict log, extracted data. World map updated: -6/Zion. 01014_ BXZXL%GJ RJUDV=< 01052_ Com. Wheel destroyed. 01054_ The unstable cave ceiling collapses. 01056_ D-53 Grenadier destroyed. 01061_ The unstable cave ceiling collapses. 01061_ Rocket Launcher destroyed. 01061_ Hvy. Assault Rifle destroyed. 01063_ Flight Unit destroyed. Map ----- +----------------------------------------------------+ | | | | | | | | | | | | | | | | | | | | | | | | | | | | | | | ?????????????????????????????????????????????????? | | ???????????????????????????????????????#####?????? | | ?????????????????????????####????####?## ##????? | | ??????????????????????#### ##??## ### #????? | | ?????????????????????## [ #??# #??#### | | ?????????????????????# #### #??## | | ?????????????????????#!| ## #### | | ?????????????????????## ### ## | | ??????????????????????## ###?## | | ??????????????????????## #####????## | | ??????????????????????# @ ##????????## #### | | ?????????????????????## #?????????## ##??? | | ?????????????????????# #??????????####???? | | ?????????????????????# #?????????????????? | | ?????????????????????# #????????????????## | | ?????????????????????# ##????????????????# | | ?????????????????????# #????????????????# | | ?????????????????????## ##????????????????# | | ??????????????????????## #?????????????????# | | ???????????????????????# d #?????????????????# | | ???????????????????????# ?????????????????# | | ???????????????????????# ##????????????????# | | ??????????????????????? #?????????????????# | | ??????????????????????? ?????????????????# | | ??????????????????????? # ?????????????????# | | ??????????????????????###? ????????????????# | | ?????????????????????????? ????????????????# | | ?????????????????????????? ???????????????# | | ?????????????????????????? == ?????????????????# | | ?????????????????????????? ?????????????????# | | ?????????????????????????????# ?????????????????# | | ????????????????????????????????????????????????# | | ????????????????????????????????????????????????# | | ???????????????????????????????????## ########## | | ???????????????????????????????????# | +----------------------------------------------------+ Best States ------------- Heat Dissipation 28 Energy Generation 12 Energy Capacity 265 Matter Stores 300 Matter Capacity 300 Sight Range 16 Terrain Scan Density 10 Evasion (%) 63 Targeting Accuracy 6 Recoil Reduction 4 Item Schematics ----------------- Grenade Launcher | -9/Materials | Scanalyzed Robot Schematics ------------------ None Fabricated ------------ Nothing Alien Tech Used ----------------- None Achievements -------------- None Challenges ------------ None Game ------ Seed ActuatorGuidanceExoskeleton Manual? 0 Play Time 00:16:08 Cumulative 31.5 hours Start 2024.08.01 @ 14:13:10 End 2024.08.01 @ 14:28:21 Sessions 1 Manual Loads 0 Difficulty Rogue Special Mode None Game No. 66 Rogue 66 Adventurer 0 Explorer 0 Win Type - Total 0 Types 0/0/0/0/0/0/0/0/0 Lore% 24 Gallery% 31 Achievement% 23 Wizard Run 0 Options --------- Layout 1 ASCII 0 Keyboard 0 Movement Mouse Keybinds 0 Fullscreen 1 Font 24/Smallcaps Map View 50x35 Zoom Use 0% Tactical HUD 1 Map Filters NONE Filters NONE Steam 1 RUN: ad6800a5-a2ec-4d7c-8645-341f79a4f494